Cogmind - Beta 13 @@@ ROGUE MODE // 2024.04.03 @ 13:51:29 Player: lazy_engineer Result: Destroyed by S-10 Pest with Light Assault Rifle Performance ------------- Evolutions (0) 0 Regions Visited (2) 400 Robots Destroyed (21) 105 Value Destroyed (442) 442 Prototype IDs (0) 0 Alien Tech Used (0) 0 Bonus (35) 35 TOTAL SCORE: 982 Bonus ------- Follower Combat Kills 35 Cogmind --------- Core Integrity 0/250 Matter 292/300 Energy 100/100 System Corruption 4% Temperature Cool (0) Movement Rolling (95) Ox1 Location -10/Mines Parts ------- > --- POWER (1) -------- (None) > --- PROPULSION (2) --- Wheel Wheel > --- UTILITY (2) ------ Small Storage Unit Large Storage Unit > --- WEAPON (2) ------- Heavy Assault Rifle Hammer > --- INVENTORY (15) --- Ion Engine Light Assault Rifle Light Assault Rifle Rocket Launcher Datajack Mining Laser Peak State ------------ > --- POWER ------------ Light Nuclear Core > --- PROPULSION ------- Wheel Wheel > --- UTILITY ---------- Small Storage Unit Large Storage Unit > --- WEAPON ----------- Heavy Assault Rifle Hammer > --- INVENTORY -------- Ion Engine Light Assault Rifle Light Assault Rifle Rocket Launcher Datajack Mining Laser [Rating: 10] Favorites ----------- Power Ion Engine Engine Ion Engine Power Core Light Nuclear Core Propulsion Light Treads Treads Light Treads Wheel Wheel Utility Small Storage Unit Device Seismic Detector Storage Small Storage Unit Weapon Hammer Energy Gun Medium Laser Ballistic Gun Light Assault Rifle Launcher Grenade Launcher Impact Weapon Hammer Build | -11 -10 -10 ------- Run | Yrd Mat Min Slots Evolved . | . . . Power . | . . . Propulsion . | . . . Utility . | . . . Weapon . | . . . Parts Attached 22 | 8 8 6 Power 3 | 1 1 1 Engine 2 | 1 1 . Core 1 | . . 1 Reactor . | . . . Propulsion 10 | 3 4 3 Treads 5 | 2 2 1 Leg . | . . . Wheel 5 | 1 2 2 Hover . | . . . Flight . | . . . Utility 3 | 2 . 1 Device 1 | 1 . . Storage 2 | 1 . 1 Processor . | . . . Hackware . | . . . Protection . | . . . Artifact . | . . . Weapon 6 | 2 3 1 Energy Gun 1 | 1 . . Energy Cannon . | . . . Ballistic Gun 3 | 1 1 1 Ballistic Cannon . | . . . Launcher 1 | . 1 . Special Weapon . | . . . Impact Weapon 1 | . 1 . Slashing Weapon . | . . . Piercing Weapon . | . . . Special Melee Weapon . | . . . Unidentified Prototypes . | . . . Parts Lost 7 | . 2 5 Power 2 | . 1 1 Propulsion 2 | . . 2 Utility 1 | . . 1 Weapon 2 | . 1 1 Highest Loss Streak 4 | . 2 4 To Critical Strikes . | . . . Average Slot Usage (%) 95 | . 99 88 Engine 10 | . 13 5 Core 3 | . . 8 Treads 14 | . 18 7 Wheel 12 | . 9 17 Device 11 | . 14 7 Storage 14 | . 14 14 Energy Gun 1 | . 2 . Ballistic Gun 9 | . 11 5 Launcher 5 | . 3 6 Impact Weapon 11 | . 10 14 Naked Turns . | . . . Heaviest Build 16 | 14 16 16 Greatest Support 40 | 40 20 20 Greatest Overweight (x) 3 | 1 1 3 Average Overweight (x) . | . . . Largest Inventory Capacity 15 | 8 8 15 Average Capacity 8 | 7 8 8 Most Carried 8 | 5 8 8 Average Carried 6 | 1 6 7 Final Capacity 15 | 8 8 15 Final Carried 8 | 4 8 6 Class Distribution -------------------- 86% | Mutant 13% | Scavenger-Mutant Dominant Class ---------------- Mutant | -10/Materials Mutant | -10/Mines Resources | -11 -10 -10 ----------- Run | Yrd Mat Min Matter Collected 433 | 224 65 144 Remotely . | . . . Salvage Created 626 | 163 299 164 Parts 32 | 14 15 3 Haulers Intercepted . | . . . Recyclers Shooed . | . . . Parts Field Recycled . | . . . Retrieved Matter . | . . . Parts Self-Destructed . | . . . Prevented . | . . . Kills | -11 -10 -10 ------- Run | Yrd Mat Min Combat Hostiles Destroyed 13 | . 9 4 Melee 6 | . 4 2 Guns 3 | . 3 . Classes Destroyed 7 | 3 3 1 Worker 2 | 1 . 1 Tunneler 3 | 3 . . Recycler 1 | 1 . . Operator 2 | . 2 . Swarmer 4 | . 3 1 Grunt 7 | . 6 1 Sentry 2 | . . 2 Best Kill Streak 5 | 5 5 2 Combat Bots Only 5 | . 5 1 Max Kills in Single Turn 1 | 1 1 1 Gunslinging . | . . . Exploded . | . . . Melee 1 | . 1 1 Uniques/NPCs Destroyed . | . . . Combat | -11 -10 -10 -------- Run | Yrd Mat Min Hostile Shots Fired 124 | . 76 48 Missed 37 | . 25 12 Damage Taken 1022 | . 577 445 Core 256 | . 124 132 Absorbed by Shields . | . . . Core Remaining (%) 100 | 100 . . Volleys Fired 31 | 12 19 . Largest 2 | 2 2 . Hottest 70 | 70 70 . Shots Fired 59 | 24 34 1 Gun 59 | 24 34 1 Cannon . | . . . Launcher . | . . . Special . | . . . Kinetic 36 | 12 23 1 Thermal 23 | 12 11 . Explosive . | . . . Electromagnetic . | . . . Robot Hit Streak 10 | 4 9 10 Robot Miss Streak 4 | 3 4 . Penetration Max . | . . . Secondary Targets 1 | . 1 . Max Gunslinging Chain 1 | . 1 . Shots Hit Robots 63 | 12 37 14 Core Hits 20 | 6 12 2 Critical Kills 3 | . 1 2 Critical Parts Destroyed 7 | . 3 4 Critical Strikes 11 | . 4 7 Smash 11 | . 4 7 Melee Attacks 63 | . 40 23 Impact 63 | . 40 23 Slashing . | . . . Piercing . | . . . Sneak Attacks 2 | . 1 1 Combat Hostiles . | . . . Follow-up Attacks . | . . . Damage Inflicted 1108 | 129 653 326 Guns 365 | 129 220 16 Cannons . | . . . Explosions . | . . . Melee 743 | . 433 310 Ramming . | . . . Kinetic 205 | 43 146 16 Thermal 160 | 86 74 . Explosive . | . . . Electromagnetic . | . . . Impact 743 | . 433 310 Slashing . | . . . Piercing . | . . . Highest Corruption 4 | . 4 4 Average Corruption 3 | . 3 4 Corruption Purged . | . . . Corruption Blocked . | . . . Effects 15 | . 7 8 Message Errors 8 | . 4 4 Matter Fused 1 | . 1 . Heat Flow Errors 1 | . . 1 Parts Fused 1 | . . 1 Data Loss (minor) 2 | . 1 1 Misfires 1 | . . 1 Weapon Failures 1 | . 1 . Overload Shots . | . . . Overflow Damage 226 | . 124 102 Projectiles . | . . . Explosions . | . . . Melee 226 | . 124 102 Knockbacks 5 | . 5 . Impact 5 | . 5 . Kinetic . | . . . Secondary . | . . . Self-Inflicted Damage . | . . . Shots . | . . . Rammed . | . . . Targets Rammed . | . . . Kicked . | . . . Crushed . | . . . Highest Temperature 233 | 70 196 233 Average Temperature 63 | 30 76 96 Received Heat Transfer 435 | . 255 180 Siege Activations . | . . . Robots Corrupted . | . . . Combat Hostiles . | . . . Parts Fried 8 | . 2 6 Impact Corruptions 14 | . 8 6 Robots Melted . | . . . Combat Hostiles . | . . . Parts Melted . | . . . Heat Transferred 481 | 259 222 . Parts Sabotaged . | . . . Parts Stolen . | . . . Parts Stripped . | . . . Power Chain Reactions . | . . . Alert | -11 -10 -10 ------- Run | Yrd Mat Min Peak Influence 393 | 25 393 115 Initial 93 | . 16 93 Average 151 | 7 223 93 Maximum Alert Level 1 | . 1 . Low Security (%) 73 | 100 48 100 Level 1 26 | . 51 . Level 2 . | . . . Level 3 . | . . . Level 4 . | . . . Level 5 . | . . . High Security . | . . . Max Security . | . . . Squads Dispatched 3 | . 3 . Investigation 1 | . 1 . Extermination . | . . . Reinforcement 2 | . 2 . Assault . | . . . Garrison . | . . . Intercept . | . . . Searches Triggered . | . . . Construction Impeded . | . . . Haulers Reinforced . | . . . Active Scanning Responses . | . . . Cargo Convoy Interrupts . | . . . Stealth | -11 -10 -10 --------- Run | Yrd Mat Min Distress Signals 1 | . 1 . Communications Jammed . | . . . Distress Signals . | . . . Times Spotted 24 | . 17 7 Peak Tracking Total 9 | . 9 3 Tactical Retreats 2 | . 2 . Traps | -11 -10 -10 ------- Run | Yrd Mat Min Traps Triggered 2 | . 2 . Indirectly . | . . . Trap Hack Attempts . | . . . Triggered . | . . . Disarmed . | . . . Reprogrammed . | . . . Reused . | . . . Traps Extracted . | . . . Installed . | . . . Triggered . | . . . Machines | -11 -10 -10 ---------- Run | Yrd Mat Min Machines Disabled . | . . . Max in Single Turn . | . . . Machines Repaired . | . . . Machines Dismantled . | . . . Machines Sabotaged . | . . . Overloaded Fab Kills . | . . . Hacking | -11 -10 -10 --------- Run | Yrd Mat Min Machines Accessed 3 | . 3 . Terminals 1 | . 1 . Fabricators . | . . . Repair Stations 1 | . 1 . Recycling Units 1 | . 1 . Scanalyzers . | . . . Garrison Access . | . . . Total Hacks 9 | . 9 . Successful 4 | . 4 . Failed 5 | . 5 . Catastrophic . | . . . Database Lockouts . | . . . Manual 5 | . 5 . Terminals 3 | . 3 . Fabricators . | . . . Repair Stations 3 | . 3 . Recycling Units 3 | . 3 . Scanalyzers . | . . . Garrison Access . | . . . Terminal Hacks . | . . . Fabricator Hacks . | . . . Repair Station Hacks 1 | . 1 . Scan Component 1 | . 1 . Recycling Unit Hacks 1 | . 1 . Report Inventory 1 | . 1 . Scanalyzer . | . . . Garrison Access Hacks . | . . . Unauthorized Hacks 2 | . 2 . Terminals 1 | . 1 . Operators 1 | . 1 . Fabricators . | . . . Repair Stations . | . . . Recycling Units 1 | . 1 . Tunnel 1 | . 1 . Scanalyzers . | . . . Garrison Access . | . . . Data Cores Recovered . | . . . Used . | . . . Hacking Detections 2 | . 2 . Full Trace Events 1 | . 1 . Feedback Events . | . . . Feedback Blocked . | . . . Robot Schematics Acquired . | . . . Robots Built . | . . . Authchips . | . . . Time . | . . . Total Robot Build Rating . | . . . Part Schematics Acquired . | . . . Parts Built . | . . . Authchips . | . . . Time . | . . . Total Part Build Rating . | . . . Parts Repaired . | . . . Time . | . . . Parts Recycled . | . . . Recycled Matter . | . . . Retrieved Matter . | . . . Retrieved Components . | . . . Parts Scanalyzed . | . . . Part Schematics Acquired . | . . . Parts Damaged . | . . . Bothacking | -11 -10 -10 ------------ Run | Yrd Mat Min Used RIF Installer . | . . . Robots Hacked . | . . . Non-combat . | . . . Combat . | . . . Robot Hacks Applied . | . . . Relay Couplers Released . | . . . Fabnet Peak Effective % . | . . . Robots Rewired . | . . . Allies Hacked . | . . . Hacks Repelled . | . . . Allies | -11 -10 -10 -------- Run | Yrd Mat Min Total Allies 3 | . . 3 Largest Group 3 | . . 3 Highest-Rated Group 40 | . . 40 Highest-Rated Ally 16 | . . 16 Total Orders . | . . . Ally Attacks 17 | . . 17 Total Damage 246 | . . 246 Kills 1 | . . 1 Allies Corrupted . | . . . Allies Melted . | . . . Intel | -11 -10 -10 ------- Run | Yrd Mat Min Robot Analysis Total . | . . . Derelict Logs Recovered 1 | . . 1 Drone Launches . | . . . Drone Recoveries . | . . . Exploration | -11 -10 -10 ------------- Run | Yrd Mat Min Turns Passed 962 | 108 498 356 Spaces Moved 591 | 54 268 269 Core 24 | 22 . 2 Treads 71 | 22 48 1 Legs . | . . . Wheels 496 | 10 220 266 Hover . | . . . Flight . | . . . Fastest Speed 50 | 50 95 80 Average Speed 97 | 103 106 88 Slowest Speed 200 | 160 160 200 Overloaded Moves . | . . . Propulsion Burnouts . | . . . Robots Hopped . | . . . Cave-ins Triggered . | . . . Exploration Rate (%) 33 | 4 43 53 Regions Visited 2 Branch Regions 1 Pre-discovered Areas 1 | . 1 . Known Exits Taken . | . . . Unknown Exits Taken 2 | 1 1 . Scrap Searched 1 | . . 1 Spaces Dug 4 | . 4 . Terrain Destroyed 4 | . 4 . Melee 4 | . 4 . Projectile . | . . . AOE . | . . . Terrain Rammed . | . . . Walls Destroyed . | . . . Machines Disabled . | . . . Actions | -11 -10 -10 --------- Run | Yrd Mat Min Total 809 | 83 377 349 Wait 84 | . 35 49 Move 589 | 53 267 269 Hop . | . . . Pick Up 18 | 10 7 1 Fast Attach 2 | 1 . 1 Attach 11 | 6 2 3 Detach . | . . . Swap 9 | 1 6 2 Drop 2 | . 1 1 Fire 31 | 12 19 . Melee 63 | . 40 23 Ram . | . . . Kick . | . . . Crush . | . . . Escape Stasis . | . . . Rewire . | . . . Trap . | . . . Miscellaneous . | . . . Route ------- -11/Scrapyard -10/Materials -10/Mines (discovered 2 exits: [*Mat x2]) History --------- Turn | Location | Event 16 | -11/Scrapyard | Discovered new exit (range 16) 109 | -11/Scrapyard | Entered Materials 302 | -10/Materials | Build established: Mutant 598 | -10/Materials | Discovered new exit (range 8) 607 | -10/Materials | Entered Mines 625 | -10/Mines | Discovered new exit (range 3) 660 | -10/Mines | Assisted by bots powering up and referring to "LRC-V3" 743 | -10/Mines | Core integrity fell below 50% 770 | -10/Mines | Lost 3 allies 801 | -10/Mines | Core integrity fell below 20% 837 | -10/Mines | Lost 4 parts (2n1u1w) 844 | -10/Mines | Received a Rocket Launcher from a helpful Derelict 861 | -10/Mines | Learned Materials garrison access intel 887 | -10/Mines | Discovered new exit (range 13) 963 | -10/Mines | Destroyed by S-10 Pest with Light Assault Rifle Last Messages --------------- 00842_ IC-DBU(g): "Need to get rid of a swarm? Done. Need a big hole in the wall? Done." 00843_ IC-DBU(g): "Need a small hole in the wall? Leave that to the mining laser wimps, I say!" 00844_ IC-DBU(g): "Would you like a rocket launcher? I know I would if I were you, so I'm going to lend you mine." 00844_ IC-DBU(g) slips back into the shadows. 00844_ K-01 Serf collects debris. 00850_ Acquired Rocket Launcher. 00853_ K-01 Serf collects debris. 00861_ Acquired derelict log, extracted data. Data stored: Materials garrison access intel. 00885_ System corrupted: FCS attempts to trigger Hvy. Assault Rifle. 00885_ System corrupted: Hvy. Assault Rifle misfires. 00887_ EXIT=FOUND 00955_ Lgt. Nuclear Core destroyed. 00957_ Destroyed Flight Unit. 00957_ S-10 Pest system corrupted by crushing effect. 00962_ S-10 Pest suffers critical hit (Smash). 00962_ S-10 Pest destroyed. Map ----- +----------------------------------------------------+ | ???????????????????????#####???????????? | | ??????????????????????## ##??????????? | | ?????????????????????## #??????????? | | ?????????????????????# ##?????????? | | ??####???????????????# #######???? | | ?## ####?????######?## ## ##??? | | ## ##???## ##?## #??? | | # ##### ##?## #??? | | # #### #??? | | ## ## ########??? | | # ### ##### ##?????????? | | +% #### #??## ##??????????? | | %+% ### #?## #???????????? | | !#* ## ## ### ##??????????? | | ## ### ###?## ##?????????? | | # #?## ##????### #?????????? | | ##??## #???????## #?????????? | | ##???#### #????????# ##?????????? | | ######## #????????# ##??????????? | | ### #????????# #???????????? | | ??## ###### ##????????# #???????????? | | ????# #????# #?????????# #???????????? | | ?????# #????# #?????????# #???????????? | | ?????? #????# #?????????# #???????????? | | ?????? #????# ###??????## #???????????? | | ???????#????# #??????# @ #???????????? | | ????????????### #??????#s###???????????? | | ??????????????# #??????#s#?????????????? | | ??????????????# #??????# #?????????????? | | ??????????????# #??????# ##????????????? | | ??????????????# #?????## ##???????????? | | ?????????????## ####?## ##??????????? | | ????????????## ### ##?????????? | | ????????????# #?????????? | | ????????????## #?????????? | | ?????????????# ##### #????????? | | ????????????## ##????# ?????? | | ???????????## ##??????# ???? | | ???????????# ##???????? ???? | | ???????????# ##?????????# < #???? | | ???????????## ##???????????## ##???? | | ????????????####??????????????# #????? | | ??????????????????????????????? #????? | | ???????????????????????????????? ?????? | | ???????????????????????????????????????? | | ???????????????????????????????????????? | | ???????????????????????????????????????? | | ???????????????????????????????????????? | | ???????????????????????????????????????? | | ???????????????????????????????????????? | +----------------------------------------------------+ Best States ------------- Heat Dissipation 25 Energy Generation 14 Energy Capacity 250 Matter Stores 300 Matter Capacity 300 Sight Range 16 Terrain Scan Density 10 Evasion (%) 50 Recoil Reduction 2 Item Schematics ----------------- None Robot Schematics ------------------ None Fabricated ------------ Nothing Alien Tech Used ----------------- None Achievements -------------- None Challenges ------------ None Game ------ Seed NetworkTransmissionMount Manual? 0 Play Time 00:11:19 Cumulative 19.9 hours Start 2024.04.03 @ 13:40:53 End 2024.04.03 @ 13:51:29 Sessions 1 Manual Loads 0 Difficulty Rogue Special Mode None Game No. 40 Rogue 40 Adventurer 0 Explorer 0 Win Type - Total 0 Types 0/0/0/0/0/0/0/0/0 Lore% 17 Gallery% 20 Achievement% 19 Wizard Run 0 Options --------- Layout 0 ASCII 0 Keyboard 0 Movement Mouse Keybinds 0 Fullscreen 1 Font 24/Smallcaps Map View 76x50 Zoom Use 0% Tactical HUD 1 Map Filters NONE Filters NONE Steam 1 RUN: 691aa67f-d852-44f9-9440-7551c8327276